fUST/lending_fUST_20251228
["ID","MTS","AMOUNT","RATE_DAILY","PERIOD"]
[399934464,1766889214234,150.0,7.557e-05,2]
[399934465,1766889216100,-28.82313646,0.00013014,2]
[399934466,1766889216122,-500.0,0.00013014,2]
[399934467,1766889216144,-139.41770508,0.00013014,2]
[399934468,1766889221596,-311.69478399,0.00013014,2]
[399934469,1766889222512,1337.88,0.00012967,2]
[399934470,1766889222538,3662.12,0.00012967,2]
[399934471,1766889224443,-48.88751093,0.00013014,2]
[399934472,1766889224468,-152.75810031,0.00013014,2]
[399934473,1766889228978,-347.24189969,0.00013014,2]
[399934474,1766889229003,-216.01536693,0.00013014,2]
[399934475,1766889237373,-219.25225268,0.00013014,2]
[399934476,1766889238957,770.34298527,0.00012967,2]
[399934477,1766889239449,-64.73238039,0.00013014,2]
[399934478,1766889239473,-312.61816292,0.00013014,2]
[399934479,1766889244526,-44.58533911,0.00013014,2]
[399934480,1766889244549,-126.53708987,0.00013014,2]
[399934481,1766889247008,5000.0,0.00012967,2]
[399934482,1766889247598,-275.09166051,0.00013014,2]
[399934483,1766889255127,-98.37124962,0.00013014,2]
[399934484,1766889255149,-333.07029986,0.00013014,2]
[399934485,1766889257817,-166.92970014,0.00013014,2]
[399934486,1766889257839,-68.19767936,0.00013014,2]
[399934487,1766889259397,-300.0,0.00013014,2]
[399934488,1766889260886,-131.80232064,0.00013014,2]
[399934489,1766889260909,-500.0,0.00013014,2]
[399934490,1766889260934,-237.91373876,0.00013014,2]
[399934491,1766889262330,-226.00278585,0.00013014,2]
[399934492,1766889270798,567.54701473,0.00012967,2]
[399934493,1766889270824,4432.45298527,0.00012967,2]
[399934494,1766889294205,5000.0,0.00013014,2]
[399934495,1766889318641,5000.0,0.00013014,2]
[399934496,1766889342209,0.01,0.00013014,2]
[399934497,1766889342235,2036.09881693,0.00013014,2]
[399934498,1766889342978,150.0,6.165e-05,2]
[399934499,1766889343918,150.0,6.459e-05,2]
[399934500,1766889344370,150.0,6.752e-05,2]
[399934501,1766889344839,150.0,7.046e-05,2]
[399934502,1766889345286,150.0,7.339e-05,2]
[399934503,1766889345760,150.0,7.633e-05,2]
[399934504,1766889346208,150.0,7.927e-05,2]
[399934505,1766889346646,170.58,8.22e-05,2]
[399934506,1766889347080,191.91,8.514e-05,2]
[399934507,1766889347510,213.23,8.807e-05,2]
[399934508,1766889365980,5000.0,0.00013014,2]
[399934509,1766889411730,150.0,6.147e-05,2]
[399934510,1766889412183,150.0,6.44e-05,2]
[399934511,1766889412632,150.0,6.732e-05,2]
[399934512,1766889413066,150.0,7.025e-05,2]
[399934513,1766889413509,176.65,7.318e-05,2]
[399934514,1766889414451,211.99,7.61e-05,2]
[399934515,1766889415371,247.32,7.903e-05,2]
[399934516,1766889415790,102.23118307,8.196e-05,2]
[399934517,1766889415815,180.41881693,8.196e-05,2]
[399934518,1766889416224,317.98,8.489e-05,2]
[399934519,1766889416677,353.31,8.781e-05,2]
[399934520,1766889480276,338.82,8.238e-05,2]
[399934521,1766889480535,338.82,8.238e-05,2]
[399934522,1766889483575,150.0,6.132e-05,2]
[399934523,1766889484023,150.0,6.424e-05,2]
[399934524,1766889484463,150.0,6.716e-05,2]
[399934525,1766889493135,-500.0,0.00013273,2]
[399934526,1766889493159,-500.0,0.00013273,2]
[399934527,1766889493180,-500.0,0.00013273,2]
[399934528,1766889493202,-500.0,0.00013273,2]
[399934529,1766889505377,-500.0,0.00013273,2]
[399934530,1766889505400,-500.0,0.00013273,2]
[399934531,1766889505423,-500.0,0.00013273,2]
[399934532,1766889505444,-500.0,0.00013273,2]
[399934533,1766889524195,-204.01,0.00013273,2]
[399934534,1766889524220,-500.0,0.00013273,2]
[399934535,1766889524245,-500.0,0.00013273,2]
[399934536,1766889524267,-500.0,0.00013273,2]
[399934537,1766889524290,-295.99,0.00013273,2]
[399934538,1766889534966,-204.01,0.00013273,2]
[399934539,1766889534989,-500.0,0.00013273,2]
[399934540,1766889535011,-386.0989902,0.00013273,2]
[399934541,1766889535034,-500.0,0.00013273,2]
[399934542,1766889535056,-409.8910098,0.00013273,2]
[399934543,1766889563997,-160.52,0.00013156,2]
[399934544,1766889567226,-444.43976229,0.00013156,2]
[399934545,1766889573516,-229.07904625,0.00013156,2]
[399934546,1766889575386,-712.67295946,0.00013156,2]
[399934547,1766889590273,673.51880854,0.00013156,2]
[399934548,1766889593625,-90.1089902,0.00013273,2]
[399934549,1766889593649,-500.0,0.00013273,2]
[399934550,1766889593672,-500.0,0.00013273,2]
[399934551,1766889593694,-500.0,0.00013273,2]
[399934552,1766889593717,-385.83916435,0.00013273,2]
[399934553,1766889593739,-24.05184545,0.00013273,2]
[399934554,1766889605806,-475.94815455,0.00013273,2]
[399934555,1766889605829,-500.0,0.00013273,2]
[399934556,1766889605854,-562.66842011,0.00013273,2]
[399934557,1766889605876,-461.38342534,0.00013273,2]
[399934558,1766889608915,-146.61657466,0.00013273,2]
[399934559,1766889608966,-38.06646869,0.00013274,2]
[399934560,1766889613046,-184.46031704,0.00013274,2]
[399934561,1766889613074,-114.97483186,0.00013274,2]
[399934562,1766889613142,150.0,7.278e-05,2]
[399934563,1766889614189,184.68304335,0.00013156,2]
[399934564,1766889615241,-185.02516814,0.00013274,2]
[399934565,1766889615280,-232.73429842,0.00013274,2]
[399934566,1766889620507,-67.26570158,0.00013274,2]
[399934567,1766889620533,-300.0,0.00013274,2]
[399934568,1766889620556,-300.0,0.00013274,2]
[399934569,1766889620580,-300.0,0.00013274,2]
[399934570,1766889620604,-300.0,0.00013274,2]
[399934571,1766889620629,-300.0,0.00013274,2]
[399934572,1766889620652,-300.0,0.00013274,2]
[399934573,1766889620675,-132.73429842,0.00013274,2]
[399934574,1766889621981,-167.26570158,0.00013274,2]
[399934575,1766889622007,-168.77558637,0.00013274,2]
[399934576,1766889623529,-131.22441363,0.00013274,2]
[399934577,1766889623554,-300.0,0.00013274,2]
[399934578,1766889623581,-39.83501413,0.00013274,2]
[399934579,1766889625027,-251.86944242,0.00013274,2]
[399934580,1766889629193,-8.29554345,0.00013274,2]
[399934581,1766889629218,-188.26636122,0.00013274,2]
[399934582,1766889633444,-111.73363878,0.00013274,2]
[399934583,1766889633468,-300.0,0.00013274,2]
[399934584,1766889633492,-300.0,0.00013274,2]
[399934585,1766889633512,-204.01,0.00013547,2]
[399934586,1766889633532,-204.01,0.00013821,2]
[399934587,1766889852302,10000.0,0.00030137,120]
[399934588,1766889859148,10000.0,0.00030137,120]
[399934589,1766889925402,10000.0,0.00030137,120]
[399934590,1766889932563,10000.0,0.00030137,120]
[399934591,1766889938491,10000.0,0.00030137,120]
[399934592,1766889944613,10000.0,0.00030137,120]
[399934593,1766889949735,10000.0,0.00030137,120]
[399934594,1766889964974,1047.0,0.00030137,120]
[399934595,1766890031127,-204.01,0.00014095,2]
[399934596,1766890031150,-204.03791113,0.00014369,2]
[399934597,1766890031170,-1824.63639838,0.00014874,2]
[399934598,1766890118721,641.7997802,0.000301,120]
[399934815,1766890238289,-218.07625002,0.00014949,2]
[399934816,1766890238299,-29.99978437,0.00014949,2]
[399934817,1766890238311,-605.00021563,0.00014949,2]
[399934818,1766890238322,-141.5657471,0.000151,2]
[399934819,1766890238333,-438.95640779,0.000151,2]
[399934856,1766890240798,-0.00695042,0.000151,2]
[399934857,1766890240809,-419.47089469,0.000151,2]
[399934858,1766890240819,-257.32997502,0.00016949,2]
[399934859,1766890240829,-113.80204012,0.0001761,2]
[399934860,1766890241181,-511.77377847,0.0001761,2]
[399934891,1766890246070,-286.77014095,0.00017434,2]
[399934892,1766890246080,-416.09084808,0.0001761,2]
[399934893,1766890246090,-4054.4842611,0.00018237,2]
[399934894,1766890246099,-164.61185581,0.00018548,3]
[399934895,1766890246110,-296.58370002,0.00018949,2]
[399934896,1766890246120,-209.53768493,0.00019609,2]
[399934897,1766890246129,-340.29649112,0.00019609,2]
[399934898,1766890246139,-265.12211002,0.00019609,2]
[399934899,1766890246149,-500.0,0.00019609,2]
[399934900,1766890246159,-500.0,0.00019609,2]
[399934901,1766890246168,-516.47320785,0.00019609,2]
[399934902,1766890246177,-500.0,0.00019609,2]
[399934903,1766890246186,-500.0,0.00019609,2]
[399934904,1766890246196,-500.0,0.00019609,2]
[399934905,1766890246205,-317.38673168,0.00019609,2]
[399934906,1766890246635,-182.61326832,0.00019609,2]
[399934907,1766890246645,-500.0,0.00019609,2]
[399934908,1766890246654,-500.0,0.00019609,2]
[399934909,1766890246664,-500.0,0.00019609,2]
[399934910,1766890246673,-500.0,0.00019609,2]
[399934911,1766890246683,-500.0,0.00019609,2]
[399934912,1766890246692,-500.0,0.00019609,2]
[399934913,1766890246702,-500.0,0.00019609,2]
[399934914,1766890246711,-500.0,0.00019609,2]
[399934915,1766890246721,-595.54596368,0.00019609,2]
[399934916,1766890246730,-500.0,0.00019609,2]
[399934917,1766890246739,-300.0,0.00019609,2]
[399934918,1766890246749,-500.0,0.00019609,2]
[399934919,1766890246758,-500.0,0.00019609,2]
[399934920,1766890246767,-500.0,0.00019609,2]
[399934921,1766890246777,-500.0,0.00019609,2]
[399934922,1766890246786,-491.85372017,0.00019609,2]
[399934923,1766890246795,-597.43583801,0.0001961,2]
[399934924,1766890246805,-7585.8539109,0.0001961,2]
[399934925,1766890246814,-300.0,0.00020001,2]
[399934926,1766890246823,-300.0,0.00020001,2]
[399934927,1766890246833,-300.0,0.00020001,2]
[399934928,1766890246843,-300.0,0.00020001,2]
[399934929,1766890246852,-300.0,0.00020001,2]
[399934930,1766890246862,-300.0,0.00020001,2]
[399934931,1766890246871,-300.0,0.00020001,2]
[399934932,1766890246881,-300.0,0.00020001,2]
[399934933,1766890246890,-300.0,0.00020001,2]
[399934934,1766890246899,-300.0,0.00020001,2]
[399934935,1766890246909,-300.0,0.00020001,2]
[399934936,1766890246918,-300.0,0.00020001,2]
[399934937,1766890246927,-300.0,0.00020001,2]
[399934938,1766890246937,-137.09819439,0.00020001,2]
[399934939,1766890390989,183.66038244,0.00026272,120]
[399934940,1766890496110,10000.0,0.00030137,120]
[399934941,1766890503149,10000.0,0.00030137,120]
[399934942,1766890517830,10000.0,0.00030137,120]
[399934943,1766890523342,10000.0,0.00030137,120]
[399934944,1766890553907,-349.6937808,0.00015172,2]
[399934945,1766890553936,-96.37759635,0.00015225,2]
[399934946,1766890568820,-159.30123623,0.00015073,2]
[399934947,1766890568843,-106.99394129,0.00015225,2]
[399934948,1766890573018,-277.56125694,0.00015225,2]
[399934951,1766890598896,-464.80215162,0.00015073,2]
[399934952,1766890600383,-79.05428284,0.00015073,2]
[399934953,1766890600408,-145.55093542,0.00015225,2]
[399934954,1766890614499,-305.14911578,0.00015172,2]
[399934955,1766890616532,-228.77305958,0.00015172,2]
[399934956,1766890617276,10240.0,0.00030137,120]
[399934957,1766890621088,-155.48519452,0.00015172,2]
[399934958,1766890621114,-375.17670533,0.00015325,2]
[399934959,1766890622649,-154.35356217,0.00015325,2]
[399934960,1766890624696,-181.71698637,0.00015325,2]
[399934961,1766890631420,-500.0,0.00015172,2]
[399934962,1766890632889,-155.56,0.00015172,2]
[399934963,1766890651026,190.636389,0.00015294,120]
[399934964,1766890685831,9800.0,0.00030137,120]
[399934965,1766890740650,10240.0,0.00030137,120]
[399934966,1766890912296,-2000.0,0.0001487,2]
[399934967,1766890915612,-56.21462375,0.0001487,2]
[399934968,1766890915634,-636.0,0.0001502,2]
[399934969,1766890915655,-271.72919068,0.0001502,2]
[399934970,1766891112952,-206.48243848,0.00015098,2]
[399934971,1766891112974,-1000.0,0.000151,2]
[399934972,1766891112996,-204.4105228,0.00015122,2]
[399934973,1766891113018,-190.636389,0.00015294,2]
[399934974,1766891113044,-300.0,0.00015401,2]
[399934975,1766891113077,-300.0,0.00015401,2]
[399934976,1766891113106,-300.0,0.00015401,2]
[399934977,1766891113152,-300.0,0.00015401,2]
[399934978,1766891113189,-300.0,0.00015401,2]
[399934979,1766891113212,-300.0,0.00015401,2]
[399934980,1766891113234,-300.0,0.00015401,2]
[399934981,1766891113257,-300.0,0.00015401,2]
[399934982,1766891113281,-300.0,0.00015401,2]
[399934983,1766891113304,-300.0,0.00015401,2]
[399934984,1766891113327,-300.0,0.00015401,2]
[399934985,1766891113348,-300.0,0.00015401,2]
[399934986,1766891113370,-300.0,0.00015401,2]
[399934987,1766891113392,-300.0,0.00015401,2]
[399934988,1766891113414,-300.0,0.00015401,2]
[399934989,1766891113436,-999.0,0.0001548,2]
[399934990,1766891120934,762.54,0.000152,2]
[399934991,1766891121437,636.93064972,0.000155,2]
[399934992,1766891284229,279.52,9.99e-05,2]
[399934994,1766891284710,158.11,9.99e-05,2]
[399934995,1766891285012,158.11,9.99e-05,2]
[399934996,1766891345159,-4612.5242594,0.00015224,2]
[399934997,1766891345181,-998.60565665,0.00016199,2]
[399934998,1766891345201,-365.09744315,0.00016297,2]
[399934999,1766891345222,-500.0,0.00016297,2]
[399935000,1766891345241,-529.47421791,0.00016297,2]
[399935001,1766891345263,-500.0,0.00016297,2]
[399935002,1766891345285,-500.0,0.00016297,2]
[399935003,1766891345306,-500.0,0.00016297,2]
[399935004,1766891345326,-500.0,0.00016297,2]
[399935005,1766891345347,-500.0,0.00016297,2]
[399935006,1766891345367,-478.01783102,0.00016297,2]
[399935007,1766891345390,-500.0,0.00016297,2]
[399935008,1766891345411,-500.0,0.00016297,2]
[399935009,1766891345433,-500.0,0.00016297,2]
[399935010,1766891345455,-500.0,0.00016297,2]
[399935011,1766891345476,-500.0,0.00016297,2]
[399935012,1766891345496,-500.0,0.00016297,2]
[399935013,1766891345516,-500.0,0.00016297,2]
[399935014,1766891345537,-368.73285553,0.00016297,2]
[399935015,1766891345562,-500.0,0.00016297,2]
[399935016,1766891345584,-63.62267856,0.00016297,2]
[399935017,1766891355122,-436.37732144,0.00016297,2]
[399935018,1766891355148,-500.0,0.00016297,2]
[399935019,1766891355170,-500.0,0.00016297,2]
[399935020,1766891355195,-500.0,0.00016297,2]
[399935021,1766891355219,-534.04919324,0.00016297,2]
[399935022,1766891355242,-372.83136024,0.00016297,2]
[399935023,1766891355268,-500.0,0.00016297,2]
[399935024,1766891355289,-500.0,0.00016297,2]
[399935025,1766891355310,-500.0,0.00016297,2]
[399935026,1766891355332,-500.0,0.00016297,2]
[399935027,1766891355354,-64.29263364,0.00016297,2]
[399935060,1766891432241,-282.11,0.000152,2]
[399935062,1766891432252,-209.9404584,0.00015447,2]
[399935064,1766891432262,-643.0,0.00015447,2]
[399935066,1766891432272,-282.11,0.000155,2]
[399935069,1766891432287,-282.11,0.000158,2]
[399935070,1766891432297,-282.11,0.000161,2]
[399935073,1766891432308,-9574.93886508,0.00016298,2]
[399935075,1766891432320,-1020.73647482,0.00016298,2]
[399935127,1766891438265,-4813.45099754,0.00016298,2]
[399935129,1766891438281,-527.12274393,0.00016298,2]
[399935134,1766891438318,-621.4604462,0.00016298,2]
[399935249,1766891440577,-0.01659601,0.00016298,2]
[399935253,1766891440841,-729.27034489,0.00016298,2]
[399935265,1766891444650,-3407.68,0.00016298,2]
[399935266,1766891445235,-894.21,0.00016298,2]
[399935275,1766891446406,-13938.301124,0.00016298,2]
[399935276,1766891508221,167.824516,7.637e-05,2]
[399935281,1766891521901,-706.56,0.000152,2]
[399935282,1766891521929,-105.1904272,0.000155,2]
[399935283,1766891588980,-304.48549669,0.00015048,2]
[399935284,1766891603895,-248.2164229,0.00013273,2]
[399935285,1766891606556,-251.7935771,0.00013273,2]
[399935286,1766891606580,-72.9420595,0.00013273,2]
[399935287,1766891608234,150.0,7.484e-05,2]
[399935288,1766891608671,150.0,8.165e-05,2]
[399935289,1766891608947,-279.90893314,0.00013273,2]
[399935290,1766891609110,150.0,8.845e-05,2]
[399935291,1766891610426,-147.14900736,0.00013273,2]
[399935292,1766891610450,-72.9420595,0.00013273,2]
[399935293,1766891611994,-261.18354359,0.00013273,2]
[399935294,1766891649517,-165.87439691,0.00013273,2]
[399935295,1766891649540,-160.35345729,0.00013473,2]
[399935296,1766891664367,-259.91451511,0.00013273,2]
[399935297,1766891665829,-173.3121012,0.00013273,2]
[399935298,1766891718645,1668.87249471,0.00013173,2]
[399935299,1766891737628,-66.77338369,0.00013273,2]
[399935300,1766891737651,-52.28544152,0.00013473,2]
[399935301,1766891737671,-446.02516904,0.00013673,2]
[399935302,1766891737691,-801.139456,0.00013699,2]
[399935303,1766891737711,-500.0,0.00013699,2]
[399935304,1766891762293,1780.0,0.00030136,120]
[399935305,1766891773287,-2000.0,0.00015,2]
[399935306,1766891785871,-385.96465091,0.00015,2]
[399935308,1766891828902,-232.30181117,0.00013273,2]
[399935309,1766891830402,-267.69818883,0.00013273,2]
[399935310,1766891830425,-297.51181117,0.00013699,2]
[399935311,1766891858880,-403.71627291,0.00013562,2]
[399935312,1766891861483,-260.38076772,0.00013562,2]
[399935313,1766891863079,-133.41477054,0.00013562,2]
[399935314,1766891863101,-130.37741567,0.00013699,2]
[399935315,1766891874409,-193.41387737,0.00013562,2]
[399935316,1766891876011,-202.98171376,0.00013562,2]
[399935317,1766891878875,-438.77518557,0.00013562,2]
[399935318,1766891923645,-92.71845014,0.00013562,2]
[399935319,1766891923666,-72.11077316,0.00013699,2]
[399935320,1766891948915,-289.39420082,0.00013273,2]
[399935321,1766891950362,-210.60579918,0.00013273,2]
[399935322,1766891950384,-119.62483721,0.00013821,2]
[399935323,1766891952993,-214.15,0.00013821,2]
[399935324,1766891961473,-166.22516279,0.00013821,2]
[399935325,1766891961498,-835.1707767,0.00014949,2]
[399935326,1766892002410,-833.77483721,0.00014949,2]
[399935327,1766892069465,-243.54589971,0.00013273,2]
[399935328,1766892070949,-219.61038699,0.00013273,2]
[399935329,1766892072422,-36.8437133,0.00013273,2]
[399935330,1766892072445,-130.8221682,0.00013273,2]
[399935331,1766892077279,-328.80033921,0.00013273,2]
[399935332,1766892082257,-220.40379971,0.0001314,2]
[399935333,1766892087955,-175.27605261,0.0001314,2]
[399935334,1766892089570,-158.91394739,0.0001314,2]
[399935335,1766892091732,-76.22836849,0.0001314,2]
[399935336,1766892091771,-40.37749259,0.00013273,2]
[399935337,1766892091795,-51.39492774,0.00013821,2]
[399935338,1766892093761,-280.01611531,0.00013821,2]
[399935339,1766892096659,-555.09336433,0.00013682,2]
[399935340,1766892102431,-348.69452026,0.00013682,2]
[399935341,1766892102454,-116.31218368,0.00013821,2]
[399935342,1766892105147,-423.52193153,0.00013545,2]
[399935343,1766892110088,-279.17847595,0.00013545,2]
[399935344,1766892110110,-9.12674006,0.00013821,2]
[399935345,1766892111703,-43.15003321,0.00013821,2]
[399935346,1766892111726,-256.84996679,0.00013821,2]
[399935347,1766892128936,-475.60221233,0.00013545,2]
[399935348,1766892131637,-300.77,0.00013545,2]
[399935349,1766892133209,-231.65844385,0.00013545,2]
[399935350,1766892135123,-242.81977826,0.00013545,2]
[399935351,1766892136997,-225.98341704,0.00013545,2]
[399935352,1766892137023,-163.69870296,0.00013682,2]
[399935353,1766892141115,-116.31741235,0.00013682,2]
[399935354,1766892141139,-172.78442103,0.00013821,2]
[399935355,1766892158811,-1201.75528407,0.00013545,2]
[399935356,1766892161040,-368.34155615,0.00013545,2]
[399935358,1766892191155,218.59287379,0.00026348,120]
[399935359,1766892197056,161.0,0.000301,120]
[399935360,1766892227372,161.02011568,0.000301,120]
[399935361,1766892252334,150.0,6.378e-05,2]
[399935362,1766892252772,150.17,6.957e-05,2]
[399935363,1766892253229,225.25,7.537e-05,2]
[399935364,1766892253684,300.34,8.117e-05,2]
[399935365,1766892254125,375.42,8.697e-05,2]
[399935366,1766892254569,450.51,9.276e-05,2]
[399935367,1766892255048,525.59,9.856e-05,2]
[399935368,1766892255530,600.67,0.00010436,2]
[399935369,1766892255962,675.76,0.00011016,2]
[399935370,1766892256419,131.351875,0.00011596,2]
[399935371,1766892256443,619.488125,0.00011596,2]
[399935372,1766892311323,276.06622697,0.00026348,120]
[399935373,1766892318416,329.18353973,0.00030136,120]
[399935374,1766892329658,150.0,6.278e-05,2]
[399935375,1766892330068,150.0,6.849e-05,2]
[399935376,1766892330430,-231.65844385,0.0001341,2]
[399935377,1766892330456,-127.87910375,0.00013545,2]
[399935378,1766892330480,-18.18907796,0.00013614,2]
[399935379,1766892330524,150.0,7.419e-05,2]
[399935380,1766892331025,150.0,7.99e-05,2]
[399935381,1766892331501,150.0,8.561e-05,2]
[399935382,1766892331967,150.0,9.132e-05,2]
[399935383,1766892332552,151.0,9.702e-05,2]
[399935384,1766892332930,172.57,0.00010273,2]
[399935385,1766892333471,194.15,0.00010844,2]
[399935386,1766892333974,215.72,0.00011415,2]
[399935387,1766892338847,-240.03317121,0.00013477,2]
[399935395,1766892518272,1833.569359,0.0001,2]
[399935396,1766892519490,-364.44024174,0.00013342,2]
[399935397,1766892541224,1330.06366901,0.00013165,2]
[399935398,1766892546237,-253.31955503,0.00013342,2]
[399935399,1766892546259,-190.19704288,0.00013614,2]
[399935400,1766892546281,-70.36561218,0.00013821,2]
[399935401,1766892546302,-637.0,0.000151,2]
[399935402,1766892546550,-1000.0,0.000151,2]
[399935403,1766892546573,-245.89562259,0.00015614,2]
[399935404,1766892546594,-873.77994956,0.00016092,2]
[399935405,1766892546614,-300.0,0.00016189,2]
[399935406,1766892546637,-500.0,0.0001619,2]
[399935407,1766892546659,-255.5682102,0.0001619,2]
[399935408,1766892546680,-500.0,0.0001619,2]
[399935409,1766892546700,-220.63195254,0.0001619,2]
[399935410,1766892546723,-500.0,0.0001619,2]
[399935411,1766892546744,-500.0,0.0001619,2]
[399935412,1766892546765,-500.0,0.0001619,2]
[399935413,1766892546786,-500.0,0.0001619,2]
[399935414,1766892546809,-284.61248171,0.0001619,2]
[399935415,1766892546830,-500.0,0.0001619,2]
[399935416,1766892546852,-500.0,0.0001619,2]
[399935417,1766892546872,-500.0,0.0001619,2]
[399935418,1766892546892,-500.0,0.0001619,2]
[399935419,1766892546912,-500.0,0.0001619,2]
[399935420,1766892546933,-500.0,0.0001619,2]
[399935421,1766892546952,-500.0,0.0001619,2]
[399935422,1766892546972,-500.0,0.0001619,2]
[399935423,1766892546993,-500.0,0.0001619,2]
[399935424,1766892547014,-123.83516215,0.0001619,2]
[399935425,1766892554137,-4912.19919378,0.0001609,2]
[399935426,1766892566159,-706.56,0.000152,2]
[399935427,1766892566182,-706.56,0.000155,2]
[399935428,1766892566218,-706.56,0.000158,2]
[399935429,1766892566238,-364.44024174,0.00015929,2]
[399935430,1766892566258,-3719.61416712,0.0001609,2]
[399935458,1766892632452,-737.61657356,0.00015995,2]
[399935459,1766892632462,-653.0,0.0001609,2]
[399935460,1766892632472,-203.10800736,0.00016095,2]
[399935461,1766892632482,-1200.0,0.00016189,2]
[399935462,1766892632492,-500.0,0.00016189,2]
[399935463,1766892632504,-500.0,0.00016189,2]
[399935464,1766892632513,-9.41693338,0.00016189,2]
[399935504,1766892638442,-490.58306662,0.00016189,2]
[399935506,1766892638454,-500.0,0.00016189,2]
[399935508,1766892638465,-500.0,0.00016189,2]
[399935510,1766892638474,-500.0,0.00016189,2]
[399935511,1766892638484,-500.0,0.00016189,2]
[399935512,1766892638495,-500.0,0.00016189,2]
[399935513,1766892638504,-500.0,0.00016189,2]
[399935514,1766892638514,-500.0,0.00016189,2]
[399935515,1766892638523,-209.10301938,0.00016189,2]
[399935516,1766892638535,-500.0,0.00016189,2]
[399935517,1766892638544,-431.58837978,0.00016189,2]
[399935518,1766892638556,-65.80184585,0.00016189,2]
[399935519,1766892638566,-500.0,0.00016189,2]
[399935520,1766892638575,-500.0,0.00016189,2]
[399935521,1766892638585,-500.0,0.00016189,2]
[399935522,1766892638594,-500.0,0.00016189,2]
[399935523,1766892638604,-199.77442237,0.00016189,2]
[399935524,1766892638615,-300.22557763,0.00016189,2]
[399935525,1766892638625,-500.0,0.00016189,2]
[399935526,1766892638635,-500.0,0.00016189,2]
[399935527,1766892638644,-337.31656698,0.00016189,2]
[399935528,1766892638656,-162.68343302,0.00016189,2]
[399935529,1766892638666,-500.0,0.00016189,2]
[399935530,1766892638676,-500.0,0.00016189,2]
[399935531,1766892638686,-500.0,0.00016189,2]
[399935532,1766892638695,-216.53589437,0.00016189,2]
[399935583,1766892641228,-3e-08,0.00016189,2]
[399935594,1766892646528,-123.3152948,0.00016189,2]
[399935595,1766892646538,-500.0,0.00016189,2]
[399935596,1766892646548,-500.0,0.00016189,2]
[399935597,1766892646558,-500.0,0.00016189,2]
[399935598,1766892646568,-500.0,0.00016189,2]
[399935599,1766892646578,-500.0,0.00016189,2]
[399935600,1766892646588,-335.82713653,0.00016189,2]
[399935601,1766892646598,-500.0,0.00016189,2]
[399935602,1766892646608,-500.0,0.00016189,2]
[399935603,1766892646619,-500.0,0.00016189,2]
[399935604,1766892646630,-500.0,0.00016189,2]
[399935605,1766892646640,-500.0,0.00016189,2]
[399935606,1766892646650,-500.0,0.00016189,2]
[399935607,1766892646660,-500.0,0.00016189,2]
[399935608,1766892646670,-500.0,0.00016189,2]
[399935609,1766892646680,-500.0,0.00016189,2]
[399935610,1766892646689,-500.0,0.00016189,2]
[399935611,1766892646699,-500.0,0.00016189,2]
[399935612,1766892646709,-500.0,0.00016189,2]
[399935613,1766892646718,-500.0,0.00016189,2]
[399935614,1766892646728,-500.0,0.00016189,2]
[399935615,1766892646738,-500.0,0.00016189,2]
[399935616,1766892646748,-178.89774714,0.00016192,2]
[399935617,1766892646759,-500.0,0.00016192,2]
[399935618,1766892646768,-504.44236678,0.00016192,2]
[399935619,1766892646778,-449.2287372,0.00016192,2]
[399935620,1766892646789,-500.0,0.00016192,2]
[399935621,1766892646800,-500.0,0.00016192,2]
[399935622,1766892646810,-2458.50245225,0.00016193,2]